fUST/lending_fUST_20250627
["ID","MTS","AMOUNT","RATE_DAILY","PERIOD"]
[367977698,1750981833524,-300.0,0.00021477,2]
[367977699,1750981833535,-300.0,0.00021477,2]
[367977700,1750981833545,-300.0,0.00021477,2]
[367977701,1750981833554,-7232.2464751,0.00021478,2]
[367977759,1750981838748,-500.0,0.00020983,2]
[367977761,1750981838758,-500.0,0.00020983,2]
[367977763,1750981838767,-365.53995262,0.00020983,2]
[367977765,1750981838776,-500.0,0.00020983,2]
[367977766,1750981838786,-500.0,0.00020983,2]
[367977769,1750981838796,-500.0,0.00020983,2]
[367977770,1750981838806,-500.0,0.00020983,2]
[367977773,1750981838815,-500.0,0.00020983,2]
[367977774,1750981838825,-500.0,0.00020983,2]
[367977775,1750981838834,-409.76858702,0.00020983,2]
[367977776,1750981838843,-500.0,0.00020983,2]
[367977777,1750981838852,-500.0,0.00020983,2]
[367977778,1750981838862,-500.0,0.00020983,2]
[367977780,1750981838871,-500.0,0.00020983,2]
[367977782,1750981838880,-500.0,0.00020983,2]
[367977783,1750981838889,-557.60936741,0.00020983,2]
[367977784,1750981838899,-500.0,0.00020983,2]
[367977785,1750981838908,-500.0,0.00020983,2]
[367977786,1750981838917,-41.38844884,0.00020983,2]
[367977787,1750981838929,-208.61155116,0.00020983,2]
[367977788,1750981838939,-500.0,0.00020983,2]
[367977789,1750981838948,-500.0,0.00020983,2]
[367977790,1750981839121,-415.48348876,0.00020983,2]
[367977791,1750981839131,-500.0,0.00020983,2]
[367977792,1750981839140,-428.43557317,0.00020983,2]
[367977844,1750981841073,-71.56442683,0.00020983,2]
[367977846,1750981841083,-500.0,0.00020983,2]
[367977848,1750981841092,-500.0,0.00020983,2]
[367977850,1750981841101,-401.09259703,0.00020983,2]
[367977852,1750981841113,-98.90740297,0.00020983,2]
[367977854,1750981841123,-500.0,0.00020983,2]
[367977856,1750981841132,-175.86259703,0.00020983,2]
[367977858,1750981841143,-324.13740297,0.00020983,2]
[367977860,1750981841152,-500.0,0.00020983,2]
[367977862,1750981841161,-500.0,0.00020983,2]
[367977864,1750981841171,-275.69495859,0.00020983,2]
[367977866,1750981841181,-500.0,0.00020983,2]
[367977868,1750981841190,-500.0,0.00020983,2]
[367977870,1750981841199,-500.0,0.00020983,2]
[367977872,1750981841211,-316.13054638,0.00020983,2]
[367977874,1750981841223,-183.86945362,0.00020983,2]
[367977876,1750981841232,-200.0,0.00020983,2]
[367977879,1750981841241,-500.0,0.00020983,2]
[367977880,1750981841251,-49.37529863,0.00020983,2]
[367977883,1750981841262,-416.65490336,0.00020983,2]
[367977885,1750981841274,-33.96979801,0.00020983,2]
[367977887,1750981841283,-306.39520199,0.00020983,2]
[367978145,1750981843822,-193.60479801,0.00020983,2]
[367978148,1750981843833,-81.95592339,0.00020983,2]
[367978152,1750981843846,-418.04407661,0.00020983,2]
[367978155,1750981843856,-124.03092339,0.00020983,2]
[367978158,1750981843868,-375.96907661,0.00020983,2]
[367978161,1750981843878,-500.0,0.00020983,2]
[367978164,1750981843888,-500.0,0.00020983,2]
[367978167,1750981843898,-500.0,0.00020983,2]
[367978169,1750981843908,-500.0,0.00020983,2]
[367978171,1750981843918,-336.53340219,0.00020983,2]
[367978173,1750981843930,-163.46659781,0.00020983,2]
[367978175,1750981843940,-500.0,0.00020983,2]
[367978178,1750981843950,-500.0,0.00020983,2]
[367978180,1750981843960,-500.0,0.00020983,2]
[367978183,1750981843970,-500.0,0.00020983,2]
[367978186,1750981843979,-500.0,0.00020983,2]
[367978189,1750981843989,-500.0,0.00020983,2]
[367978192,1750981843999,-500.0,0.00020983,2]
[367978194,1750981844008,-500.0,0.00020983,2]
[367978197,1750981844018,-500.0,0.00020983,2]
[367978199,1750981844028,-500.0,0.00020983,2]
[367978201,1750981844038,-500.0,0.00020983,2]
[367978203,1750981844047,-500.0,0.00020983,2]
[367978205,1750981844057,-571.39782793,0.00020983,2]
[367978207,1750981844066,-500.0,0.00020983,2]
[367978209,1750981844076,-500.0,0.00020983,2]
[367978211,1750981844086,-500.0,0.00020983,2]
[367978212,1750981844096,-500.0,0.00020983,2]
[367978214,1750981844106,-500.0,0.00020983,2]
[367978216,1750981844115,-500.0,0.00020983,2]
[367978218,1750981844125,-500.0,0.00020983,2]
[367978220,1750981844136,-500.0,0.00020983,2]
[367978222,1750981844145,-500.0,0.00020983,2]
[367978224,1750981844154,-500.0,0.00020983,2]
[367978226,1750981844164,-500.0,0.00020983,2]
[367978228,1750981844173,-500.0,0.00020983,2]
[367978230,1750981844182,-500.0,0.00020983,2]
[367978232,1750981844192,-500.0,0.00020983,2]
[367978234,1750981844201,-500.0,0.00020983,2]
[367978236,1750981844210,-500.0,0.00020983,2]
[367978238,1750981844219,-500.0,0.00020983,2]
[367978240,1750981844229,-66.10644673,0.00020983,2]
[367978242,1750981844242,-433.89355327,0.00020983,2]
[367978244,1750981844251,-500.0,0.00020983,2]
[367978246,1750981844261,-500.0,0.00020983,2]
[367978248,1750981844270,-500.0,0.00020983,2]
[367978250,1750981844279,-266.10291182,0.00020983,2]
[367978252,1750981844291,-233.89708818,0.00020983,2]
[367978254,1750981844301,-500.0,0.00020983,2]
[367978256,1750981844310,-500.0,0.00020983,2]
[367978258,1750981844320,-500.0,0.00020983,2]
[367978259,1750981844329,-500.0,0.00020983,2]
[367978261,1750981844338,-500.0,0.00020983,2]
[367978263,1750981844348,-500.0,0.00020983,2]
[367978265,1750981844357,-470.06779484,0.00020983,2]
[367978267,1750981844366,-2136.09126784,0.00021478,2]
[367978269,1750981844378,-11567.0651207,0.00021478,2]
[367978272,1750981844390,-13949.8879743,0.00021478,2]
[367978274,1750981844402,-639.12603351,0.00021478,2]
[367978475,1750981846675,-460.0,0.00020984,2]
[367978477,1750981846684,-299.96853026,0.00021258,2]
[367978479,1750981846696,-160.03146974,0.00021258,2]
[367978481,1750981846705,-2097.63110365,0.00021478,2]
[367978487,1750981846752,-725.27306679,0.00021478,2]
[367978490,1750981846773,-692.31,0.00021478,2]
[367981253,1750981978967,1658.58682074,0.00024658,120]
[367981257,1750982356573,511.0,0.0001611,2]
[367981258,1750982576582,165.508446,0.00013699,2]
[367981271,1750983031967,-13531.83523655,0.00020661,2]
[367981272,1750983032038,-1004.25000015,0.00020661,2]
[367981288,1750983032244,-900.1571553,0.00020661,2]
[367981290,1750983032257,-37523.332028,0.00020661,2]
[367981291,1750983032267,-272.0,0.00020662,2]
[367981292,1750983032276,-766.81353733,0.00020866,2]
[367981293,1750983032286,-604.50954228,0.00020866,2]
[367981294,1750983032296,-496.4621952,0.00020868,2]
[367981295,1750983032306,-3198.70300921,0.000209,4]
[367981296,1750983032315,-466.4759648,0.00020935,2]
[367981297,1750983032324,-1200.0,0.00020954,2]
[367981298,1750983032334,-300.0,0.00020955,2]
[367981299,1750983032344,-300.0,0.00020955,2]
[367981300,1750983032353,-207.4,0.00020955,2]
[367981301,1750983032363,-351.96,0.00020956,3]
[367981302,1750983032372,-363.56,0.00020956,10]
[367981303,1750983032381,-274.04412847,0.00020965,2]
[367981304,1750983032390,-460.0,0.00020965,2]
[367981305,1750983032399,-528.7,0.00020965,2]
[367981306,1750983032409,-460.0,0.00020965,2]
[367981307,1750983032418,-460.0,0.00020965,2]
[367981308,1750983032428,-460.0,0.00020965,2]
[367981309,1750983032437,-17014.31685995,0.00020965,2]
[367981310,1750983032449,-586.9874673,0.00020965,2]
[367981311,1750983032461,-640.33305802,0.00020965,2]
[367981372,1750983038035,-500.0,0.00020865,2]
[367981374,1750983038045,-184.84002163,0.00020865,2]
[367981384,1750983038229,-315.15997837,0.00020865,2]
[367981385,1750983038239,-500.0,0.00020865,2]
[367981386,1750983038249,-500.0,0.00020865,2]
[367981387,1750983038258,-500.0,0.00020865,2]
[367981388,1750983038267,-500.0,0.00020865,2]
[367981389,1750983038277,-416.52103966,0.00020865,2]
[367981390,1750983038286,-500.0,0.00020865,2]
[367981391,1750983038296,-500.0,0.00020865,2]
[367981392,1750983038305,-500.0,0.00020865,2]
[367981393,1750983038314,-500.0,0.00020865,2]
[367981394,1750983038323,-500.0,0.00020865,2]
[367981395,1750983038332,-191.57685191,0.00020865,2]
[367981396,1750983038343,-500.0,0.00020865,2]
[367981397,1750983038352,-500.0,0.00020865,2]
[367981398,1750983038362,-500.0,0.00020865,2]
[367981400,1750983038371,-325.28380319,0.00020865,2]
[367981402,1750983038380,-500.0,0.00020865,2]
[367981404,1750983038390,-300.0,0.00020865,2]
[367981406,1750983038399,-500.0,0.00020865,2]
[367981408,1750983038408,-500.0,0.00020865,2]
[367981410,1750983038418,-500.0,0.00020865,2]
[367981412,1750983038427,-500.0,0.00020865,2]
[367981414,1750983038437,-500.0,0.00020865,2]
[367981416,1750983038446,-500.0,0.00020865,2]
[367981418,1750983038455,-500.0,0.00020865,2]
[367981420,1750983038465,-500.0,0.00020865,2]
[367981422,1750983038474,-500.0,0.00020865,2]
[367981424,1750983038483,-500.0,0.00020865,2]
[367981426,1750983038494,-500.0,0.00020865,2]
[367981428,1750983038503,-579.41184128,0.00020865,2]
[367981430,1750983038513,-500.0,0.00020865,2]
[367981432,1750983038523,-500.0,0.00020865,2]
[367981434,1750983038532,-500.0,0.00020865,2]
[367981436,1750983038542,-500.0,0.00020865,2]
[367981438,1750983038552,-500.0,0.00020865,2]
[367981440,1750983038562,-500.0,0.00020865,2]
[367981442,1750983038572,-500.0,0.00020865,2]
[367981444,1750983038582,-500.0,0.00020865,2]
[367981446,1750983038591,-500.0,0.00020865,2]
[367981448,1750983038601,-500.0,0.00020865,2]
[367981450,1750983038610,-500.0,0.00020865,2]
[367981452,1750983038620,-500.0,0.00020865,2]
[367981454,1750983038630,-500.0,0.00020865,2]
[367981456,1750983038640,-500.0,0.00020865,2]
[367981458,1750983038650,-500.0,0.00020865,2]
[367981460,1750983038659,-500.0,0.00020865,2]
[367981462,1750983038669,-500.0,0.00020865,2]
[367981464,1750983038679,-500.0,0.00020865,2]
[367981466,1750983038688,-500.0,0.00020865,2]
[367981468,1750983038697,-500.0,0.00020865,2]
[367981470,1750983038707,-500.0,0.00020865,2]
[367981472,1750983038717,-500.0,0.00020865,2]
[367981474,1750983038727,-500.0,0.00020865,2]
[367981476,1750983038737,-500.0,0.00020865,2]
[367981478,1750983038746,-500.0,0.00020865,2]
[367981480,1750983038755,-500.0,0.00020865,2]
[367981482,1750983038765,-500.0,0.00020865,2]
[367981484,1750983038775,-500.0,0.00020865,2]
[367981486,1750983038785,-500.0,0.00020865,2]
[367981488,1750983038795,-500.0,0.00020865,2]
[367981490,1750983038804,-500.0,0.00020865,2]
[367981492,1750983038813,-500.0,0.00020865,2]
[367981494,1750983038825,-500.0,0.00020865,2]
[367981496,1750983038835,-500.0,0.00020865,2]
[367981498,1750983038844,-500.0,0.00020865,2]
[367981500,1750983038853,-500.0,0.00020865,2]
[367981502,1750983038862,-500.0,0.00020865,2]
[367981504,1750983038872,-500.0,0.00020865,2]
[367981506,1750983038881,-500.0,0.00020865,2]
[367981508,1750983038891,-624.0114875,0.00020865,2]
[367981510,1750983038901,-500.0,0.00020865,2]
[367981512,1750983038910,-500.0,0.00020865,2]
[367981514,1750983038920,-500.0,0.00020865,2]
[367981516,1750983038931,-302.97,0.00020956,10]
[367981518,1750983038940,-500.0,0.00020965,2]
[367981539,1750983039125,-500.0,0.00020965,2]
[367981542,1750983039138,-241.91354747,0.00020965,2]
[367981544,1750983039148,-521.22238896,0.00020965,2]
[367981546,1750983039158,-500.0,0.00020965,2]
[367981548,1750983039168,-500.0,0.00020965,2]
[367981550,1750983039178,-500.0,0.00020965,2]
[367981552,1750983039188,-500.0,0.00020965,2]
[367981554,1750983039198,-460.0,0.00020965,2]
[367981556,1750983039212,-15783.4768838,0.00020965,2]
[367981558,1750983039221,-787.64090698,0.00020965,2]
[367981560,1750983039231,-50000.0,0.00020966,2]
[367981562,1750983039240,-1187.0,0.00020967,2]
[367981564,1750983039250,-460.0,0.00020967,2]
[367981566,1750983039261,-603.07312552,0.00020967,2]
[367981568,1750983039270,-460.0,0.00020967,2]
[367981570,1750983039280,-460.0,0.00020967,2]
[367981572,1750983039290,-430.0,0.00020967,2]
[367981574,1750983039300,-460.0,0.00020967,2]
[367981576,1750983039309,-460.0,0.00020967,2]
[367981578,1750983039319,-460.0,0.00020967,2]
[367981580,1750983039329,-606.15,0.00020967,2]
[367981582,1750983039338,-460.0,0.00020967,2]
[367981584,1750983039347,-793.1,0.00020967,2]
[367981586,1750983039357,-460.0,0.00020967,2]
[367981588,1750983039367,-3297.38,0.00020967,2]
[367981590,1750983039377,-274.04412847,0.00020967,2]
[367981592,1750983039388,-460.0,0.00020967,2]
[367981594,1750983039398,-460.0,0.00020967,2]
[367981596,1750983039409,-460.0,0.00020967,2]
[367981598,1750983039418,-460.0,0.00020967,2]
[367981600,1750983039427,-2984.78,0.00020967,2]
[367981602,1750983039437,-430.0,0.00020967,2]
[367981604,1750983039446,-414.89406444,0.00020967,2]
[367981606,1750983039456,-460.0,0.00020967,2]
[367981608,1750983039465,-430.0,0.00020967,2]
[367981610,1750983039475,-465.12424,0.00020968,2]
[367981612,1750983039484,-460.0,0.00020968,2]
[367981614,1750983039494,-460.0,0.00020968,2]
[367981616,1750983039503,-460.0,0.00020968,2]
[367981618,1750983039513,-460.0,0.00020968,2]
[367981620,1750983039523,-200.0,0.00020968,10]
[367981622,1750983039533,-200.0,0.00020968,10]
[367981624,1750983039543,-200.0,0.00020968,10]
[367981626,1750983039552,-217.324923,0.00020968,10]
[367981628,1750983039561,-460.0,0.00020968,2]
[367981630,1750983039571,-460.0,0.00020968,2]
[367981632,1750983039581,-460.0,0.00020968,2]
[367981634,1750983039590,-440.0,0.00020968,2]
[367981636,1750983039600,-3464.82,0.00020968,2]
[367981638,1750983039609,-460.0,0.00020968,2]
[367981640,1750983039619,-460.0,0.00020968,2]
[367981642,1750983039628,-460.0,0.00020968,2]
[367981644,1750983039637,-859.89,0.00020968,2]
[367981646,1750983039647,-460.0,0.00020968,2]
[367981648,1750983039656,-748.76,0.00020968,2]
[367981650,1750983039667,-502.72,0.00020968,2]
[367981652,1750983039677,-460.0,0.00020968,2]
[367981654,1750983039686,-460.0,0.00020968,2]
[367981656,1750983039696,-2536.83,0.00020968,2]
[367981658,1750983039705,-2045.1,0.00020968,2]
[367981660,1750983039715,-1358.9,0.00020968,2]
[367981662,1750983039724,-3186.09,0.00020968,2]
[367981664,1750983039734,-648.25,0.00020968,2]
[367981666,1750983039744,-460.0,0.00020968,2]
[367981668,1750983039753,-2005.53,0.00020968,2]
[367981670,1750983039763,-460.0,0.00020968,2]
[367981672,1750983039772,-460.0,0.00020968,2]
[367981674,1750983039783,-854.46,0.00020968,2]
[367981676,1750983039792,-756.31,0.00020968,2]
[367981678,1750983039802,-665.59,0.00020968,2]
[367981680,1750983039811,-551.26,0.00020968,2]
[367981682,1750983039820,-460.0,0.00020968,2]
[367981684,1750983039830,-2278.35,0.00020968,2]
[367981686,1750983039839,-460.0,0.0002097,2]
[367981688,1750983039849,-494.52,0.0002097,2]
[367981690,1750983039858,-460.0,0.0002097,2]
[367981693,1750983039868,-387.76029338,0.0002097,2]
[367981696,1750983039877,-460.0,0.0002097,2]
[367981698,1750983039887,-460.0,0.0002097,2]
[367981700,1750983039896,-460.0,0.0002097,2]
[367981702,1750983039905,-400.0,0.0002097,2]
[367981704,1750983039915,-401.33721209,0.0002097,2]
[367981706,1750983039925,-460.0,0.0002097,2]
[367981708,1750983039934,-460.0,0.0002097,2]
[367981710,1750983039943,-460.0,0.0002097,2]
[367981712,1750983039952,-460.0,0.0002097,2]
[367981713,1750983039962,-460.0,0.0002097,2]
[367981716,1750983039971,-981.72583137,0.0002097,2]
[367981718,1750983039981,-460.0,0.00020971,2]
[367981719,1750983039990,-381.97526461,0.00020971,2]
[367981722,1750983040001,-460.0,0.00020971,2]
[367981723,1750983040010,-460.0,0.00020971,2]
[367981726,1750983040020,-401.29086827,0.00020971,2]
[367981727,1750983040029,-460.0,0.00020971,2]
[367981729,1750983040039,-450.0,0.00020971,2]
[367981731,1750983040048,-500.60716057,0.00020973,2]
[367981733,1750983040058,-500.0,0.00020973,2]
[367981735,1750983040067,-500.0,0.00020973,2]
[367981737,1750983040077,-586.08574951,0.00020973,2]
[367981739,1750983040087,-500.0,0.00020973,2]
[367981742,1750983040097,-500.0,0.00020973,2]
[367981744,1750983040107,-500.0,0.00020973,2]
[367981746,1750983040117,-500.0,0.00020973,2]
[367981748,1750983040126,-581.33748376,0.00020973,2]
[367981749,1750983040135,-285.00690646,0.00020973,2]
[367981751,1750983040145,-500.0,0.00020973,2]
[367981753,1750983040154,-500.0,0.00020973,2]
[367981756,1750983040164,-500.0,0.00020973,2]
[367981758,1750983040174,-500.0,0.00020973,2]
[367981759,1750983040183,-500.0,0.00020973,2]
[367981762,1750983040193,-500.0,0.00020973,2]
[367981763,1750983040204,-500.0,0.00020973,2]
[367981765,1750983040217,-500.0,0.00020973,2]
[367981767,1750983040226,-500.0,0.00020973,2]
[367981769,1750983040236,-353.80032943,0.00020973,2]
[367981772,1750983040245,-314.3743946,0.00020973,2]
[367981773,1750983040255,-500.0,0.00020973,2]
[367981775,1750983040265,-500.0,0.00020973,2]
[367981777,1750983040274,-500.0,0.0002098,2]
[367981779,1750983040284,-500.0,0.0002098,2]
[367981781,1750983040293,-500.0,0.0002098,2]
[367981783,1750983040303,-460.0,0.0002098,2]
[367981785,1750983040312,-460.0,0.0002098,2]
[367981787,1750983040321,-460.0,0.0002098,2]
[367981789,1750983040331,-544.9156056,0.0002098,2]
[367981791,1750983040340,-460.0,0.0002098,2]
[367981793,1750983040349,-531.14580334,0.0002098,2]
[367981795,1750983040359,-460.0,0.0002098,2]
[367981797,1750983040368,-460.0,0.0002098,2]
[367981799,1750983040378,-460.0,0.0002098,2]
[367981801,1750983040387,-460.0,0.0002098,2]
[367981803,1750983040396,-460.0,0.0002098,2]
[367981805,1750983040406,-460.0,0.0002098,2]
[367981807,1750983040415,-460.0,0.0002098,2]
[367981809,1750983040424,-460.0,0.0002098,2]
[367981811,1750983040434,-460.0,0.0002098,2]
[367981813,1750983040444,-460.0,0.0002098,2]
[367981815,1750983040453,-460.0,0.0002098,2]
[367981817,1750983040463,-460.0,0.0002098,2]
[367981819,1750983040472,-156.90853998,0.0002098,2]
[367981821,1750983040482,-461.24544363,0.0002098,2]
[367981823,1750983040491,-460.0,0.0002098,2]
[367981825,1750983040500,-460.0,0.0002098,2]
[367981827,1750983040510,-460.0,0.0002098,2]
[367981829,1750983040518,-460.0,0.0002098,2]
[367981831,1750983040528,-460.0,0.0002098,2]
[367981833,1750983040538,-460.0,0.0002098,2]
[367981835,1750983040547,-460.0,0.0002098,2]
[367981837,1750983040557,-380.0,0.0002098,2]
[367981839,1750983040566,-460.0,0.0002098,2]
[367981841,1750983040575,-460.0,0.0002098,2]
[367981843,1750983040585,-460.0,0.0002098,2]
[367981845,1750983040594,-450.0,0.0002098,2]
[367981847,1750983040603,-460.0,0.0002098,2]
[367981849,1750983040612,-460.0,0.0002098,2]
[367981851,1750983040621,-460.0,0.0002098,2]
[367981853,1750983040630,-500.0,0.0002098,2]
[367981855,1750983040639,-633.66,0.0002098,2]
[367981857,1750983040649,-460.0,0.0002098,2]
[367981859,1750983040660,-460.0,0.0002098,2]
[367981861,1750983040669,-495.66,0.0002098,2]
[367981863,1750983040679,-460.0,0.0002098,2]
[367981865,1750983040688,-460.0,0.0002098,2]
[367981867,1750983040698,-460.0,0.0002098,2]
[367981869,1750983040708,-460.0,0.0002098,2]
[367981871,1750983040718,-460.0,0.0002098,2]
[367981873,1750983040727,-460.0,0.0002098,2]
[367981875,1750983040736,-460.0,0.0002098,2]
[367981877,1750983040746,-460.0,0.0002098,2]
[367981879,1750983040755,-460.0,0.0002098,2]
[367981881,1750983040765,-460.60113543,0.0002098,2]
[367981883,1750983040775,-460.0,0.0002098,2]
[367981885,1750983040784,-460.0,0.0002098,2]
[367981887,1750983040793,-460.0,0.0002098,2]
[367981889,1750983040803,-460.0,0.0002098,2]
[367981891,1750983040812,-460.0,0.0002098,2]
[367981893,1750983040822,-460.0,0.0002098,2]
[367981895,1750983040831,-460.0,0.0002098,2]
[367981897,1750983040841,-283.58747644,0.0002098,2]
[367981899,1750983040850,-460.0,0.0002098,2]
[367981901,1750983040860,-460.0,0.0002098,2]
[367981903,1750983040869,-460.0,0.0002098,2]
[367981905,1750983040879,-460.0,0.0002098,2]
[367981907,1750983040888,-460.0,0.0002098,2]
[367981909,1750983040897,-473.21112444,0.0002098,2]
[367981911,1750983040907,-460.0,0.0002098,2]
[367981913,1750983040916,-500.0,0.0002098,2]
[367981915,1750983040925,-460.0,0.0002098,2]
[367981917,1750983040936,-460.0,0.0002098,2]
[367981919,1750983040945,-458.40269902,0.0002098,2]
[367981921,1750983040954,-460.0,0.0002098,2]
[367981923,1750983040964,-460.0,0.0002098,2]
[367981925,1750983040974,-350.0,0.0002098,2]
[367981927,1750983040983,-460.0,0.0002098,2]
[367981929,1750983040992,-460.0,0.0002098,2]
[367981931,1750983041001,-460.32334548,0.0002098,2]
[367981933,1750983041011,-460.0,0.0002098,2]
[367981935,1750983041020,-460.0,0.0002098,2]
[367981937,1750983041030,-505.37067928,0.0002098,2]
[367981939,1750983041039,-460.0,0.0002098,2]
[367981941,1750983041049,-460.0,0.0002098,2]
[367981943,1750983041058,-460.0,0.0002098,2]
[367981945,1750983041068,-460.0,0.0002098,2]
[367981947,1750983041077,-460.0,0.0002098,2]
[367981949,1750983041087,-460.0,0.0002098,2]
[367981951,1750983041096,-460.0,0.0002098,2]
[367981953,1750983041105,-460.0,0.0002098,2]
[367981955,1750983041115,-477.55,0.0002098,2]
[367981957,1750983041125,-460.0,0.0002098,2]
[367981959,1750983041135,-460.0,0.0002098,2]
[367981961,1750983041144,-460.0,0.0002098,2]
[367981963,1750983041154,-460.0,0.0002098,2]
[367981965,1750983041164,-157.73218912,0.0002098,2]
[367981967,1750983041173,-460.0,0.0002098,2]
[367981969,1750983041182,-460.0,0.0002098,2]
[367981971,1750983041191,-441.28812256,0.0002098,2]
[367981973,1750983041201,-460.0,0.0002098,2]
[367981975,1750983041214,-460.0,0.0002098,2]
[367981977,1750983041224,-460.0,0.0002098,2]
[367981979,1750983041233,-460.0,0.0002098,2]
[367981981,1750983041242,-460.0,0.0002098,2]
[367981983,1750983041253,-463.24320802,0.0002098,2]
[367981985,1750983041263,-305.94169269,0.0002098,2]
[367981987,1750983041272,-573.54585652,0.0002098,2]
[367981988,1750983041283,-460.0,0.0002098,2]
[367981990,1750983041293,-460.0,0.0002098,2]
[367981993,1750983041303,-460.0,0.0002098,2]
[367981994,1750983041311,-460.0,0.0002098,2]
[367981996,1750983041321,-460.0,0.0002098,2]
[367981998,1750983041330,-460.0,0.0002098,2]
[367982000,1750983041339,-403.58674974,0.0002098,2]
[367982003,1750983041349,-460.0,0.0002098,2]
[367982004,1750983041359,-460.0,0.0002098,2]
[367982006,1750983041368,-460.0,0.0002098,2]
[367982009,1750983041378,-460.0,0.0002098,2]
[367982011,1750983041388,-460.0,0.0002098,2]
[367982012,1750983041398,-460.0,0.0002098,2]
[367982015,1750983041407,-460.0,0.0002098,2]
[367982016,1750983041417,-460.0,0.0002098,2]
[367982018,1750983041426,-460.0,0.0002098,2]
[367982021,1750983041436,-540.0,0.0002098,2]
[367982022,1750983041445,-460.0,0.0002098,2]
[367982024,1750983041455,-243.19832708,0.0002098,2]
[367982026,1750983041464,-460.0,0.0002098,2]
[367982028,1750983041474,-460.0,0.0002098,2]
[367982030,1750983041483,-460.0,0.0002098,2]
[367982032,1750983041492,-479.88252478,0.0002098,2]
[367982034,1750983041502,-460.0,0.0002098,2]
[367982036,1750983041511,-500.0,0.0002098,2]
[367982038,1750983041520,-460.0,0.0002098,2]
[367982040,1750983041529,-460.0,0.0002098,2]
[367982042,1750983041538,-150.76727999,0.0002098,2]
[367982044,1750983041547,-460.0,0.0002098,2]
[367982046,1750983041557,-460.0,0.0002098,2]
[367982048,1750983041566,-466.17,0.0002098,2]
[367982050,1750983041575,-447.32624458,0.0002098,2]
[367982052,1750983041585,-460.0,0.0002098,2]
[367982054,1750983041594,-683.9,0.0002098,2]
[367982056,1750983041603,-460.0,0.0002098,2]
[367982058,1750983041612,-460.0,0.0002098,2]
[367982060,1750983041621,-772.61,0.0002098,2]
[367982062,1750983041631,-503.77657955,0.0002098,2]
[367982064,1750983041641,-460.0,0.0002098,2]
[367982066,1750983041650,-542.71,0.0002098,2]
[367982068,1750983041659,-460.0,0.0002098,2]
[367982070,1750983041669,-460.0,0.0002098,2]
[367982072,1750983041679,-460.0,0.0002098,2]
[367982074,1750983041689,-503.72488838,0.0002098,2]
[367982076,1750983041698,-932.89,0.0002098,2]
[367982078,1750983041707,-500.0,0.0002098,2]
[367982080,1750983041719,-333.33982744,0.0002098,2]
[367982082,1750983041730,-701.12,0.0002098,2]
[367982084,1750983041739,-460.0,0.0002098,2]
[367982086,1750983041748,-460.0,0.0002098,2]
[367982088,1750983041759,-460.0,0.0002098,2]
[367982090,1750983041769,-460.0,0.0002098,2]
[367982092,1750983041778,-500.98793775,0.0002098,2]
[367982094,1750983041787,-460.0,0.0002098,2]
[367982096,1750983041797,-460.0,0.0002098,2]